fUSD/lending_fUSD_20250923
["ID","MTS","AMOUNT","RATE_DAILY","PERIOD"]
[387154580,1758595833632,-400.0,0.00019987,2]
[387154581,1758595833642,-400.0,0.00019987,2]
[387154582,1758595833653,-400.0,0.00019987,2]
[387154583,1758595833663,-400.0,0.00019987,2]
[387154584,1758595833673,-400.0,0.00019987,2]
[387154585,1758595833683,-400.0,0.00019987,2]
[387154586,1758595833694,-400.0,0.00019987,2]
[387154587,1758595833705,-400.0,0.00019987,2]
[387154588,1758595833715,-208.5404855,0.00019987,2]
[387154589,1758595833730,-191.4595145,0.00019987,2]
[387154590,1758595833741,-400.0,0.00019987,2]
[387154591,1758595833751,-400.0,0.00019987,2]
[387154592,1758595833761,-400.0,0.00019987,2]
[387154593,1758595833771,-400.0,0.00019987,2]
[387154594,1758595833781,-400.0,0.00019987,2]
[387154595,1758595833792,-400.0,0.00019987,2]
[387154596,1758595833802,-400.0,0.00019987,2]
[387154597,1758595833812,-400.0,0.00019987,2]
[387154598,1758595833822,-286.93431157,0.00019987,2]
[387154599,1758595833839,-113.06568843,0.00019987,2]
[387154600,1758595833849,-333.35755172,0.00019987,2]
[387154601,1758595833859,-177.82359813,0.00019987,2]
[387154602,1758595833880,-222.17640187,0.00019987,2]
[387154603,1758595833890,-84.38882903,0.00019987,2]
[387154604,1758595833914,-315.61117097,0.00019987,2]
[387154605,1758595833925,-400.0,0.00019987,2]
[387154606,1758595833934,-400.0,0.00019987,2]
[387154607,1758595833945,-127.79736583,0.00019987,2]
[387154608,1758595833957,-288.58595295,0.00019987,2]
[387154609,1758595833967,-400.0,0.00019987,2]
[387154610,1758595833978,-400.0,0.00019987,2]
[387154611,1758595833988,-400.0,0.00019987,2]
[387154612,1758595833998,-400.0,0.00019987,2]
[387154613,1758595834007,-400.0,0.00019987,2]
[387154614,1758595834017,-400.0,0.00019987,2]
[387154615,1758595834027,-400.0,0.00019987,2]
[387154616,1758595834036,-400.0,0.00019987,2]
[387154617,1758595834045,-400.0,0.00019987,2]
[387154618,1758595834054,-403.09783714,0.00019987,2]
[387154619,1758595834064,-400.0,0.00019987,2]
[387154620,1758595834074,-566.24,0.00019987,2]
[387154621,1758595834083,-400.0,0.00019987,2]
[387154622,1758595834093,-400.0,0.00019987,2]
[387154623,1758595834103,-400.0,0.00019987,2]
[387154624,1758595834112,-400.0,0.00019987,2]
[387154625,1758595834123,-400.0,0.00019987,2]
[387154626,1758595834132,-400.0,0.00019987,2]
[387154627,1758595834141,-275.36967662,0.00019987,2]
[387154629,1758595837738,-283.4999975,0.00019986,2]
[387154630,1758595837749,-216.5000025,0.00019986,2]
[387154631,1758595837760,-124.63032338,0.00019987,2]
[387154632,1758595837771,-402.86134017,0.00019987,2]
[387154633,1758595837780,-611.15,0.00019987,2]
[387154634,1758595837790,-400.0,0.00019987,2]
[387154635,1758595837799,-400.0,0.00019987,2]
[387154636,1758595837808,-400.0,0.00019987,2]
[387154637,1758595837818,-400.0,0.00019987,2]
[387154638,1758595837827,-250.84428547,0.00019987,2]
[387154639,1758595837867,-149.15571453,0.00019987,2]
[387154640,1758595837877,-400.0,0.00019987,2]
[387154641,1758595837886,-400.0,0.00019987,2]
[387154642,1758595837895,-400.0,0.00019987,2]
[387154643,1758595837905,-400.0,0.00019987,2]
[387154645,1758595837915,-400.0,0.00019987,2]
[387154647,1758595837924,-400.0,0.00019987,2]
[387154649,1758595837934,-400.0,0.00019987,2]
[387154651,1758595837943,-400.0,0.00019987,2]
[387154653,1758595837952,-400.0,0.00019987,2]
[387154655,1758595837962,-400.0,0.00019987,2]
[387154657,1758595837971,-333.85960833,0.00019987,2]
[387154659,1758595837985,-66.14039167,0.00019987,2]
[387154661,1758595837994,-400.0,0.00019987,2]
[387154662,1758595838004,-234.15363561,0.00019987,2]
[387154664,1758595838014,-400.0,0.00019987,2]
[387154666,1758595838023,-400.0,0.00019987,2]
[387154668,1758595838033,-400.0,0.00019987,2]
[387154670,1758595838042,-400.0,0.00019987,2]
[387154672,1758595838051,-400.0,0.00019987,2]
[387154674,1758595838060,-400.0,0.00019987,2]
[387154675,1758595838069,-400.0,0.00019987,2]
[387154677,1758595838078,-400.0,0.00019987,2]
[387154679,1758595838087,-400.0,0.00019987,2]
[387154681,1758595838097,-257.00878633,0.00019987,2]
[387154683,1758595838106,-400.0,0.00019987,2]
[387154685,1758595838116,-344.01725608,0.00019987,2]
[387154687,1758595838128,-55.98274392,0.00019987,2]
[387154689,1758595838138,-400.0,0.00019987,2]
[387154690,1758595838147,-400.0,0.00019987,2]
[387154692,1758595838157,-414.69838833,0.00019987,2]
[387154694,1758595838167,-400.0,0.00019987,2]
[387154696,1758595838176,-400.0,0.00019987,2]
[387154698,1758595838187,-246.28101278,0.00019987,2]
[387154701,1758595838228,-153.71898722,0.00019987,2]
[387154702,1758595838238,-367.88101278,0.00019987,2]
[387154703,1758595838250,-32.11898722,0.00019987,2]
[387154704,1758595838259,-400.0,0.00019987,2]
[387154705,1758595838268,-358.90825971,0.00019987,2]
[387154715,1758595839636,-41.09174029,0.00019987,2]
[387154716,1758595839646,-400.0,0.00019987,2]
[387154717,1758595839655,-400.0,0.00019987,2]
[387154718,1758595839665,-400.0,0.00019987,2]
[387154719,1758595839674,-635.62,0.00019987,2]
[387154720,1758595839683,-400.0,0.00019987,2]
[387154721,1758595839692,-400.0,0.00019987,2]
[387154722,1758595839701,-400.0,0.00019987,2]
[387154723,1758595839711,-405.48642262,0.00019987,2]
[387154724,1758595839721,-400.0,0.00019987,2]
[387154725,1758595839730,-400.0,0.00019987,2]
[387154726,1758595839740,-400.0,0.00019987,2]
[387154727,1758595839758,-400.0,0.00019987,2]
[387154728,1758595839774,-400.0,0.00019987,2]
[387154729,1758595839787,-400.0,0.00019987,2]
[387154730,1758595839796,-400.0,0.00019987,2]
[387154731,1758595839805,-400.0,0.00019987,2]
[387154732,1758595839823,-400.0,0.00019987,2]
[387154733,1758595839832,-500.0,0.00019987,2]
[387154734,1758595839842,-400.0,0.00019987,2]
[387154735,1758595839851,-400.0,0.00019987,2]
[387154736,1758595839860,-1180.77,0.00019987,2]
[387154737,1758595839870,-400.0,0.00019987,2]
[387154738,1758595839879,-400.0,0.00019987,2]
[387154739,1758595839888,-400.0,0.00019987,2]
[387154740,1758595839898,-699.14,0.00019987,2]
[387154741,1758595839908,-400.0,0.00019987,2]
[387154742,1758595839917,-400.0,0.00019987,2]
[387154743,1758595839926,-400.0,0.00019987,2]
[387154744,1758595839936,-400.85716827,0.00019987,2]
[387154745,1758595839945,-400.0,0.00019987,2]
[387154746,1758595839955,-400.0,0.00019987,2]
[387154747,1758595839964,-160.98221953,0.00019987,2]
[387154748,1758595839974,-422.16,0.00019987,2]
[387154749,1758595839983,-400.0,0.00019987,2]
[387154750,1758595839992,-400.0,0.00019987,2]
[387154751,1758595840001,-400.0,0.00019987,2]
[387154752,1758595840010,-400.0,0.00019987,2]
[387154753,1758595840019,-400.0,0.00019987,2]
[387154754,1758595840029,-400.0,0.00019987,2]
[387154755,1758595840038,-410.84544631,0.00019987,2]
[387154756,1758595840046,-400.0,0.00019987,2]
[387154757,1758595840056,-400.0,0.00019987,2]
[387154758,1758595840065,-400.0,0.00019987,2]
[387154759,1758595840074,-400.0,0.00019987,2]
[387154760,1758595840084,-401.21699189,0.00019987,2]
[387154761,1758595840093,-1210.55,0.00019987,2]
[387154762,1758595840103,-400.0,0.00019987,2]
[387154763,1758595840112,-400.0,0.00019987,2]
[387154764,1758595840121,-527.8485586,0.00019987,2]
[387154765,1758595840130,-400.0,0.00019987,2]
[387154766,1758595840139,-400.0,0.00019987,2]
[387154767,1758595840149,-400.0,0.00019987,2]
[387154768,1758595840158,-562.04,0.00019987,2]
[387154769,1758595840167,-400.0,0.00019987,2]
[387154770,1758595840176,-400.0,0.00019987,2]
[387154771,1758595840185,-400.0,0.00019987,2]
[387154772,1758595840195,-400.0,0.00019987,2]
[387154773,1758595840204,-400.0,0.00019987,2]
[387154774,1758595840213,-400.0,0.00019987,2]
[387154775,1758595840222,-401.45567207,0.00019987,2]
[387154776,1758595840232,-400.0,0.00019987,2]
[387154777,1758595840241,-400.0,0.00019987,2]
[387154778,1758595840250,-400.0,0.00019987,2]
[387154779,1758595840260,-400.0,0.00019987,2]
[387154780,1758595840269,-686.56,0.00019987,2]
[387154781,1758595840278,-400.0,0.00019987,2]
[387154782,1758595840287,-400.0,0.00019987,2]
[387154783,1758595840296,-2715.34,0.00019987,2]
[387154784,1758595840305,-400.0,0.00019987,2]
[387154785,1758595840315,-400.0,0.00019987,2]
[387154786,1758595840324,-400.0,0.00019987,2]
[387154787,1758595840334,-400.0,0.00019987,2]
[387154788,1758595840343,-400.0,0.00019987,2]
[387154789,1758595840353,-400.0,0.00019987,2]
[387154790,1758595840362,-400.0,0.00019987,2]
[387154791,1758595840371,-400.0,0.00019987,2]
[387154792,1758595840382,-513.85,0.00019987,2]
[387154793,1758595840391,-400.0,0.00019987,2]
[387154794,1758595840401,-397.55608707,0.00019987,2]
[387154795,1758595840410,-409.08340857,0.00019987,2]
[387154796,1758595840419,-852.29,0.00019987,2]
[387154797,1758595840428,-400.0,0.00019987,2]
[387154798,1758595840437,-400.0,0.00019987,2]
[387154799,1758595840446,-400.0,0.00019987,2]
[387154800,1758595840455,-400.0,0.00019987,2]
[387154801,1758595840464,-400.0,0.00019987,2]
[387154802,1758595840473,-683.35,0.00019987,2]
[387154803,1758595840483,-400.0,0.00019987,2]
[387154804,1758595840491,-400.0,0.00019987,2]
[387154805,1758595840501,-400.0,0.00019987,2]
[387154806,1758595840510,-397.651633,0.00019987,2]
[387154807,1758595840519,-401.12635348,0.00019987,2]
[387154808,1758595840528,-400.0,0.00019987,2]
[387154809,1758595840537,-400.0,0.00019987,2]
[387154810,1758595840545,-818.27,0.00019987,2]
[387154811,1758595840554,-400.0,0.00019987,2]
[387154812,1758595840564,-400.0,0.00019987,2]
[387154813,1758595840573,-556.0,0.00019987,2]
[387154814,1758595840582,-400.0,0.00019987,2]
[387154815,1758595840591,-397.56746458,0.00019987,2]
[387154816,1758595840599,-579.53,0.00019987,2]
[387154817,1758595840608,-400.0,0.00019987,2]
[387154818,1758595840617,-402.03758218,0.00019987,2]
[387154819,1758595840627,-516.88,0.00019987,2]
[387154820,1758595840636,-400.0,0.00019987,2]
[387154821,1758595840645,-400.0,0.00019987,2]
[387154822,1758595840655,-400.0,0.00019987,2]
[387154823,1758595840664,-400.0,0.00019987,2]
[387154824,1758595840673,-400.0,0.00019987,2]
[387154825,1758595840682,-400.0,0.00019987,2]
[387154826,1758595840691,-400.0,0.00019987,2]
[387154827,1758595840701,-300.0,0.00019987,2]
[387154828,1758595840710,-1898.08,0.00019987,2]
[387154829,1758595840719,-400.0,0.00019987,2]
[387154830,1758595840728,-400.0,0.00019987,2]
[387154831,1758595840738,-400.0,0.00019987,2]
[387154832,1758595840747,-789.63,0.00019987,2]
[387154833,1758595840756,-903.47,0.00019987,2]
[387154834,1758595840765,-400.0,0.00019987,2]
[387154835,1758595840775,-400.0,0.00019987,2]
[387154836,1758595840784,-478.08,0.00019987,2]
[387154837,1758595840793,-400.0,0.00019987,2]
[387154838,1758595840802,-400.0,0.00019987,2]
[387154839,1758595840812,-2539.69,0.00019987,2]
[387154840,1758595840821,-400.0,0.00019987,2]
[387154841,1758595840831,-902.27,0.00019987,2]
[387154842,1758595840840,-400.0,0.00019987,2]
[387154843,1758595840850,-400.0,0.00019987,2]
[387154844,1758595840859,-400.0,0.00019987,2]
[387154845,1758595840869,-400.0,0.00019987,2]
[387154846,1758595840878,-504.69555438,0.00019987,2]
[387154847,1758595840886,-400.0,0.00019987,2]
[387154848,1758595840895,-400.0,0.00019987,2]
[387154849,1758595840904,-400.0,0.00019987,2]
[387154850,1758595840912,-400.0,0.00019987,2]
[387154851,1758595840921,-400.0,0.00019987,2]
[387154852,1758595840931,-400.0,0.00019987,2]
[387154853,1758595840939,-699.03706492,0.00019987,2]
[387154854,1758595840959,-144.15293508,0.00019987,2]
[387154855,1758595840968,-400.0,0.00019987,2]
[387154856,1758595840977,-400.0,0.00019987,2]
[387154857,1758595840987,-400.0,0.00019987,2]
[387154858,1758595840995,-400.0,0.00019987,2]
[387154859,1758595841005,-400.0,0.00019987,2]
[387154860,1758595841014,-400.0,0.00019987,2]
[387154861,1758595841023,-400.0,0.00019987,2]
[387154862,1758595841033,-400.0,0.00019987,2]
[387154863,1758595841042,-3747.43,0.00019987,2]
[387154864,1758595841051,-400.0,0.00019987,2]
[387154865,1758595841059,-654.48,0.00019987,2]
[387154866,1758595841069,-400.0,0.00019987,2]
[387154867,1758595841078,-400.0,0.00019987,2]
[387154868,1758595841088,-1538.57,0.00019987,2]
[387154869,1758595841097,-436.53844241,0.00019987,2]
[387154870,1758595841335,-1073.63,0.00019987,2]
[387154871,1758595841345,-284.81969553,0.00019987,2]
[387154872,1758595841355,-309.87299132,0.00019987,2]
[387154873,1758595841368,-408.0939497,0.00019987,2]
[387154874,1758595841377,-400.0,0.00019987,2]
[387154875,1758595841386,-4174.02,0.00019987,2]
[387154876,1758595841395,-400.0,0.00019987,2]
[387154877,1758595841406,-400.87619566,0.00019987,2]
[387154878,1758595841415,-997.58,0.00019987,2]
[387154879,1758595841425,-400.0,0.00019987,2]
[387154880,1758595841435,-400.0,0.00019987,2]
[387154881,1758595841446,-400.0,0.00019987,2]
[387154882,1758595841455,-400.0,0.00019987,2]
[387154883,1758595841465,-1000.0,0.00019987,2]
[387154884,1758595841475,-400.0,0.00019987,2]
[387154885,1758595841484,-400.0,0.00019987,2]
[387154886,1758595841494,-400.0,0.00019987,2]
[387154887,1758595841503,-400.0,0.00019987,2]
[387154888,1758595841512,-589.75,0.00019987,2]
[387154889,1758595841521,-400.0,0.00019987,2]
[387154890,1758595841531,-502.96,0.00019987,2]
[387154891,1758595841541,-400.0,0.00019987,2]
[387154892,1758595841550,-635.41,0.00019987,2]
[387154893,1758595841560,-406.73,0.00019987,2]
[387154894,1758595841569,-400.0,0.00019987,2]
[387154895,1758595841577,-1472.27,0.00019987,2]
[387154896,1758595841586,-400.0,0.00019987,2]
[387154897,1758595841595,-915.78,0.00019987,2]
[387154898,1758595841603,-828.55,0.00019987,2]
[387154899,1758595841612,-400.0,0.00019987,2]
[387154900,1758595841620,-400.0,0.00019987,2]
[387154901,1758595841629,-400.0,0.00019987,2]
[387154902,1758595841637,-400.0,0.00019987,2]
[387154903,1758595841646,-400.0,0.00019987,2]
[387154904,1758595841654,-405.04849036,0.00019987,2]
[387154905,1758595841663,-400.0,0.00019987,2]
[387154906,1758595841672,-469.53,0.00019987,2]
[387154907,1758595841681,-400.0,0.00019987,2]
[387154908,1758595841690,-400.0,0.00019987,2]
[387154909,1758595841700,-400.0,0.00019987,2]
[387154910,1758595841709,-401.71166828,0.00019987,2]
[387154911,1758595841719,-400.0,0.00019987,2]
[387154912,1758595841728,-400.0,0.00019987,2]
[387154913,1758595841739,-367.45782569,0.00019987,2]
[387154914,1758595841748,-400.0,0.00019987,2]
[387154915,1758595841758,-782.47,0.00019987,2]
[387154916,1758595841767,-231.92375119,0.00019987,2]
[387154917,1758595841777,-400.0,0.00019987,2]
[387154918,1758595841787,-400.0,0.00019987,2]
[387154919,1758595841797,-400.0,0.00019987,2]
[387154920,1758595841807,-400.0,0.00019987,2]
[387154921,1758595841817,-673.62,0.00019987,2]
[387154922,1758595841827,-400.0,0.00019987,2]
[387154923,1758595841837,-555.97,0.00019987,2]
[387154924,1758595841846,-400.0,0.00019987,2]
[387154925,1758595841855,-400.0,0.00019987,2]
[387154926,1758595841865,-400.0,0.00019987,2]
[387154927,1758595841874,-400.0,0.00019987,2]
[387154928,1758595841884,-400.0,0.00019987,2]
[387154929,1758595841893,-400.0,0.00019987,2]
[387154930,1758595841903,-400.0,0.00019987,2]
[387154931,1758595841912,-400.0,0.00019987,2]
[387154932,1758595841922,-400.0,0.00019987,2]
[387154933,1758595841931,-400.0,0.00019987,2]
[387154934,1758595841940,-400.0,0.00019987,2]
[387154935,1758595841950,-400.0,0.00019987,2]
[387154936,1758595841959,-500.0,0.00019987,2]
[387154937,1758595841968,-400.0,0.00019987,2]
[387154938,1758595841977,-400.0,0.00019987,2]
[387154939,1758595841987,-400.0,0.00019987,2]
[387154940,1758595841996,-400.0,0.00019987,2]
[387154941,1758595842007,-400.0,0.00019987,2]
[387154942,1758595842016,-400.0,0.00019987,2]
[387154943,1758595842026,-400.0,0.00019987,2]
[387154944,1758595842037,-400.0,0.00019987,2]
[387154945,1758595842047,-400.0,0.00019987,2]
[387154946,1758595842059,-400.0,0.00019987,2]
[387154947,1758595842068,-400.0,0.00019987,2]
[387154948,1758595842077,-400.0,0.00019987,2]
[387154949,1758595842086,-400.0,0.00019987,2]
[387154950,1758595842095,-2097.02,0.00019987,2]
[387154951,1758595842105,-442.08000013,0.00019987,2]
[387154952,1758595842114,-491.58,0.00019987,2]
[387154953,1758595842123,-196.28299922,0.00019987,2]
[387154954,1758595842132,-400.0,0.00019987,2]
[387154955,1758595842142,-400.0,0.00019987,2]
[387154956,1758595842151,-400.0,0.00019987,2]
[387154957,1758595842161,-500.0,0.00019987,2]
[387154958,1758595842171,-400.0,0.00019987,2]
[387154959,1758595842180,-400.0,0.00019987,2]
[387154960,1758595842190,-400.0,0.00019987,2]
[387154961,1758595842199,-400.0,0.00019987,2]
[387154962,1758595842209,-1265.28,0.00019987,2]
[387154963,1758595842218,-400.0,0.00019987,2]
[387154964,1758595842228,-544.61953811,0.00019987,2]
[387154965,1758595842238,-1683.73,0.00019987,2]
[387154966,1758595842247,-400.0,0.00019987,2]
[387154967,1758595842257,-400.0,0.00019987,2]
[387154968,1758595842267,-500.0,0.00019987,2]
[387154969,1758595842277,-400.0,0.00019987,2]
[387154970,1758595842287,-400.0,0.00019987,2]
[387154971,1758595842296,-1167.82,0.00019987,2]
[387154972,1758595842306,-400.0,0.00019987,2]
[387154973,1758595842316,-400.0,0.00019987,2]
[387154974,1758595842327,-400.0,0.00019987,2]
[387154975,1758595842336,-862.31,0.00019987,2]
[387154976,1758595842346,-400.0,0.00019987,2]
[387154977,1758595842355,-400.0,0.00019987,2]
[387154978,1758595842364,-400.0,0.00019987,2]
[387154979,1758595842374,-404.67574707,0.00019987,2]
[387154980,1758595842383,-400.0,0.00019987,2]
[387154982,1758595842393,-400.0,0.00019987,2]
[387154984,1758595842402,-1332.17,0.00019987,2]
[387154985,1758595842411,-400.0,0.00019987,2]
[387154987,1758595842421,-455.92525175,0.00019987,2]
[387154989,1758595842430,-400.0,0.00019987,2]
[387154991,1758595842440,-400.0,0.00019987,2]
[387154993,1758595842450,-400.0,0.00019987,2]
[387154995,1758595842459,-400.0,0.00019987,2]
[387154998,1758595842468,-400.0,0.00019987,2]
[387155001,1758595842478,-203.96463643,0.00019987,2]
[387155003,1758595842488,-400.0,0.00019987,2]
[387155005,1758595842498,-667.61,0.00019987,2]
[387155007,1758595842507,-400.0,0.00019987,2]
[387155009,1758595842517,-2179.67,0.00019987,2]
[387155011,1758595842526,-400.0,0.00019987,2]
[387155013,1758595842535,-1160.41,0.00019987,2]
[387155015,1758595842545,-400.0,0.00019987,2]
[387155017,1758595842554,-520.49,0.00019987,2]
[387155019,1758595842564,-539.2,0.00019987,2]
[387155021,1758595842573,-400.0,0.00019987,2]
[387155023,1758595842582,-400.0,0.00019987,2]
[387155025,1758595842591,-699.87,0.00019987,2]
[387155027,1758595842601,-400.0,0.00019987,2]
[387155029,1758595842610,-400.0,0.00019987,2]
[387155031,1758595842620,-400.0,0.00019987,2]
[387155033,1758595842630,-469.66,0.00019987,2]
[387155035,1758595842639,-400.0,0.00019987,2]
[387155037,1758595842649,-400.0,0.00019987,2]
[387155038,1758595842658,-400.0,0.00019987,2]
[387155039,1758595842668,-1328.44,0.00019987,2]
[387155040,1758595842677,-493.9,0.00019987,2]
[387155041,1758595842686,-400.0,0.00019987,2]
[387155042,1758595842695,-400.0,0.00019987,2]
[387155043,1758595842705,-400.0,0.00019987,2]
[387155044,1758595842715,-638.82,0.00019987,2]
[387155045,1758595842724,-400.0,0.00019987,2]
[387155046,1758595842734,-1233.22,0.00019987,2]
[387155047,1758595842744,-400.0,0.00019987,2]
[387155048,1758595842753,-400.0,0.00019987,2]
[387155049,1758595842763,-810.09313032,0.00019987,2]
[387155070,1758595843264,-959.84136626,0.00019987,2]
[387155071,1758595843276,-266.86550342,0.00019987,2]
[387155072,1758595843285,-212.98207098,0.00019987,2]
[387155073,1758595843313,-187.01792902,0.00019987,2]
[387155074,1758595843322,-400.0,0.00019987,2]
[387155075,1758595843332,-400.0,0.00019987,2]
[387155076,1758595843341,-400.0,0.00019987,2]
[387155077,1758595843351,-400.0,0.00019987,2]
[387155078,1758595843362,-400.0,0.00019987,2]
[387155079,1758595843371,-400.0,0.00019987,2]
[387155080,1758595843380,-400.0,0.00019987,2]
[387155081,1758595843389,-400.0,0.00019987,2]
[387155082,1758595843399,-400.0,0.00019987,2]
[387155083,1758595843408,-1366.63930243,0.00019987,2]
[387155084,1758595843423,-1776.49069757,0.00019987,2]
[387155085,1758595843433,-400.0,0.00019987,2]
[387155086,1758595843442,-369.25933332,0.00019987,2]
[387155087,1758595843452,-744.44,0.00019987,2]
[387155088,1758595843461,-400.0,0.00019987,2]
[387155089,1758595843470,-400.0,0.00019987,2]
[387155090,1758595843480,-400.0,0.00019987,2]
[387155091,1758595843491,-400.0,0.00019987,2]
[387155092,1758595843501,-778.72,0.00019987,2]
[387155093,1758595843510,-458.7660643,0.00019987,2]
[387155094,1758595843520,-400.0,0.00019987,2]
[387155095,1758595843530,-400.0,0.00019987,2]
[387155096,1758595843539,-400.0,0.00019987,2]
[387155097,1758595843548,-542.64,0.00019987,2]
[387155098,1758595843557,-400.0,0.00019987,2]
[387155099,1758595843567,-956.89,0.00019987,2]
[387155100,1758595843576,-400.0,0.00019987,2]
[387155101,1758595843586,-578.59,0.00019987,2]
[387155102,1758595843595,-403.25015186,0.00019987,2]
[387155103,1758595843604,-400.0,0.00019987,2]
[387155104,1758595843614,-400.0,0.00019987,2]
[387155105,1758595843623,-19253.5148393,0.00019987,2]
[387155106,1758595843633,-400.0,0.00019988,2]
[387155107,1758595843643,-512.6691889,0.00019988,2]
[387155108,1758595843653,-193.6406,0.00019988,2]
[387155109,1758595843662,-400.0,0.00019988,2]
[387155110,1758595843672,-400.0,0.00019988,2]
[387155111,1758595843681,-400.0,0.00019988,2]
[387155112,1758595843691,-400.0,0.00019988,2]
[387155113,1758595843701,-400.0,0.00019988,2]
[387155114,1758595843711,-400.0,0.00019988,2]
[387155115,1758595843721,-400.0,0.00019988,2]
[387155116,1758595843731,-400.0,0.00019988,2]
[387155117,1758595843743,-400.0,0.00019988,2]
[387155118,1758595843753,-400.0,0.00019988,2]
[387155119,1758595843763,-400.0,0.00019988,2]
[387155120,1758595843773,-400.0,0.00019988,2]
[387155121,1758595843782,-400.0,0.00019988,2]
[387155122,1758595843791,-400.0,0.00019988,2]
[387155123,1758595843801,-400.0,0.00019988,2]
[387155124,1758595843810,-400.0,0.00019988,2]
[387155125,1758595843820,-400.0,0.00019988,2]
[387155126,1758595843830,-400.0,0.00019988,2]
[387155127,1758595843839,-400.0,0.00019988,2]
[387155128,1758595843849,-400.0,0.00019988,2]
[387155129,1758595843858,-400.0,0.00019988,2]
[387155130,1758595843867,-400.0,0.00019988,2]
[387155131,1758595843877,-400.0,0.00019988,2]
[387155132,1758595843887,-400.0,0.00019988,2]
[387155133,1758595843896,-281.77974434,0.00019988,2]
[387155134,1758595843905,-400.0,0.00019988,2]
[387155135,1758595843915,-400.0,0.00019988,2]
[387155136,1758595843924,-400.0,0.00019988,2]
[387155137,1758595843934,-400.0,0.00019988,2]
[387155138,1758595843943,-400.0,0.00019988,2]
[387155139,1758595843952,-400.0,0.00019988,2]
[387155140,1758595843962,-400.0,0.00019988,2]
[387155141,1758595843971,-400.0,0.00019988,2]
[387155142,1758595843981,-400.0,0.00019988,2]
[387155143,1758595843992,-400.0,0.00019988,2]
[387155144,1758595844002,-400.0,0.00019988,2]
[387155145,1758595844011,-400.0,0.00019988,2]
[387155146,1758595844020,-352.87982908,0.00019988,2]
[387155147,1758595844029,-400.0,0.00019988,2]
[387155148,1758595844038,-425.01728738,0.00019988,2]
[387155149,1758595844048,-509.87038853,0.00019988,2]
[387155150,1758595844057,-400.0,0.00019988,2]
[387155151,1758595844066,-400.0,0.00019988,2]
[387155152,1758595844075,-400.0,0.00019988,2]
[387155153,1758595844084,-400.0,0.00019988,2]
[387155154,1758595844094,-400.0,0.00019988,2]
[387155155,1758595844103,-401.07121859,0.00019988,2]
[387155156,1758595844112,-400.0,0.00019988,2]
[387155157,1758595844121,-400.0,0.00019988,2]
[387155158,1758595844130,-400.0,0.00019988,2]
[387155159,1758595844139,-400.0,0.00019988,2]
[387155160,1758595844148,-251.82320711,0.00019988,2]
[387155161,1758595844157,-419.52366819,0.00019988,2]
[387155162,1758595844166,-400.0,0.00019988,2]
[387155163,1758595844176,-400.0,0.00019988,2]
[387155164,1758595844187,-400.0,0.00019988,2]
[387155165,1758595844196,-400.0,0.00019988,2]
[387155166,1758595844206,-400.0,0.00019988,2]